bitfinex/quotes_ETHUSD_20251120
["timestamp","ask_amount","ask_price","bid_price","bid_amount"]
[1763658713305,0.1,2822.4,2821.3,1.36569264]
[1763658713607,0.1,2822.4,2821.4,0.4587]
[1763658713981,0.69360234,2823.3,2821.4,0.4587]
[1763658714186,0.1,2822.1,2821.4,0.4587]
[1763658714369,1.31249664,2822.7,2821.0,45.00859208]
[1763658714569,0.405504,2822.4,2821.0,45.00859208]
[1763658714806,0.1,2821.1,2821.0,45.00859208]
[1763658715372,0.65623994,2821.1,2821.0,45.00859208]
[1763658716996,1.37074394,2821.1,2821.0,45.00859208]
[1763658717205,1.07505894,2821.1,2821.0,45.00859208]
[1763658717408,0.309,2823.6,2821.0,53.0013643]
[1763658717610,0.1293,2824.1,2821.1,1.50169264]
[1763658717771,0.1293,2824.1,2821.6,7.53407222]
[1763658718113,3.97928106,2824.1,2821.6,7.53407222]
[1763658718418,0.1293,2824.1,2821.7,0.6425]
[1763658718574,0.3205,2824.9,2822.0,7.53407222]
[1763658718776,0.3205,2824.9,2821.8,0.4587]
[1763658718777,7.53407222,2824.4,2821.8,0.4587]
[1763658718978,7.53407222,2824.2,2821.8,0.4587]
[1763658719511,0.3205,2824.1,2821.8,0.4587]
[1763658719884,7.53407222,2824.2,2821.8,0.4587]
[1763658720223,0.3205,2824.1,2821.8,0.4587]
[1763658720400,7.53407222,2823.7,2821.8,0.4587]
[1763658720587,7.53407222,2823.7,2821.7,0.1723]
[1763658720785,0.1408,2824.3,2821.9,0.4587]
[1763658721094,0.1408,2824.3,2821.9,0.5947]
[1763658721295,0.72347962,2825.2,2822.3,0.90699264]
[1763658721296,0.3205,2825.2,2822.3,0.90699264]
[1763658721502,7.57587222,2825.7,2822.8,0.90699264]
[1763658721684,7.57587222,2825.7,2822.0,0.4587]
[1763658721685,0.0418,2825.7,2822.9,0.405504]
[1763658721874,7.53407222,2825.4,2823.0,0.5947]
[1763658722077,7.53407222,2824.4,2821.8,0.4587]
[1763658722292,0.90699264,2825.3,2821.8,0.4587]
[1763658722293,0.405504,2823.7,2821.8,0.4587]
[1763658722821,0.3205,2823.8,2821.8,0.4587]
[1763658722979,0.3205,2824.4,2821.9,0.541504]
[1763658723317,0.0418,2825.7,2822.5,7.53407222]
[1763658723318,0.3205,2824.9,2822.5,7.53407222]
[1763658723481,0.3205,2824.9,2822.6,0.4587]
[1763658723813,0.405504,2824.8,2822.6,0.4587]
[1763658724123,0.3205,2824.9,2822.0,0.4587]
[1763658724124,1.31249664,2824.5,2822.0,0.4587]
[1763658724336,1.31249664,2824.0,2822.0,0.4587]
[1763658724926,0.3205,2823.9,2822.0,0.4587]
[1763658725133,7.0798803,2825.0,2822.0,7.99277222]
[1763658725423,7.0798803,2825.0,2822.0,0.4587]
[1763658725424,0.90699264,2823.8,2822.0,0.4587]
[1763658725622,0.405504,2823.7,2822.0,0.4587]
[1763658725922,1.22749264,2824.9,2822.0,0.4587]
[1763658725923,0.90699264,2823.9,2822.0,0.4587]
[1763658726078,0.90699264,2823.9,2821.4,0.4587]
[1763658726079,0.405504,2823.8,2821.4,0.4587]
[1763658726275,0.405504,2823.8,2821.0,45.00959208]
[1763658726276,0.30507476,2823.8,2821.8,0.49413837]
[1763658726528,0.30507476,2824.2,2821.8,0.4587]
[1763658726825,0.3205,2824.2,2821.8,1.36569264]
[1763658727026,0.3205,2824.2,2821.9,0.90720649]
[1763658727206,0.3205,2824.2,2821.9,1.36590649]
[1763658727420,0.90699264,2824.0,2822.0,0.4587]
[1763658727626,0.30643185,2823.9,2822.0,0.4587]
[1763658727838,0.35762537,2823.9,2822.0,0.4587]
[1763658728005,0.405504,2824.0,2822.0,0.4587]
[1763658728208,0.30650163,2824.0,2822.0,0.4587]
[1763658728531,4.7462529,2825.0,2822.0,0.4587]
[1763658728532,0.31155337,2823.7,2822.4,0.405504]
[1763658728846,0.31155337,2823.7,2822.2,0.136]
[1763658729007,0.31155337,2823.7,2822.3,0.405504]
[1763658729190,0.31155337,2823.7,2822.4,0.4885]
[1763658730093,0.31155337,2823.7,2822.0,0.90699264]
[1763658730094,0.546304,2823.6,2822.0,0.4885]
[1763658730294,0.7122531,2823.5,2821.5,0.4885]
[1763658730506,0.405504,2823.4,2821.5,0.4885]
[1763658730744,3.54195445,2823.3,2821.5,0.4885]
[1763658730896,2.32727927,2823.2,2821.3,0.1947]
[1763658731091,1.01478263,2823.1,2821.4,0.4885]
[1763658731291,1.22749264,2823.2,2821.0,45.00959208]
[1763658731292,1.31249664,2822.8,2821.0,45.00959208]
[1763658731507,0.405504,2822.6,2821.0,45.00959208]
[1763658731936,1.01537027,2822.6,2821.1,0.6832]
[1763658732241,0.30733674,2822.5,2821.1,0.6832]
[1763658732536,0.405504,2822.5,2821.0,0.001]
[1763658732741,0.90699264,2822.2,2821.0,0.001]
[1763658732948,0.3205,2822.4,2821.1,0.1947]
[1763658732949,0.30733674,2822.1,2821.1,0.1947]
[1763658733127,1.15499706,2822.3,2821.0,0.001]
[1763658733312,0.30733674,2822.2,2821.0,0.001]
[1763658733636,1.01709706,2822.2,2821.0,0.001]
[1763658733929,0.30733674,2822.1,2821.0,0.001]
[1763658734132,0.30733674,2822.1,2821.1,0.6832]
[1763658734443,0.1379,2822.2,2821.0,0.001]
[1763658735058,0.90699264,2822.1,2821.0,0.001]
[1763658735360,0.405504,2821.9,2821.0,0.001]
[1763658735532,0.3205,2821.8,2821.0,0.001]
[1763658735718,0.29061037,2821.8,2821.0,0.001]
[1763658735924,0.30733674,2821.9,2821.0,0.001]
[1763658736356,0.405504,2821.7,2821.0,0.001]
[1763658736531,0.30733674,2821.7,2821.0,0.001]
[1763658736932,0.30746136,2821.7,2821.0,0.001]
[1763658737133,0.30749406,2821.8,2821.0,0.001]
[1763658737462,1.624634,2821.7,2821.0,0.001]
[1763658737634,1.30196326,2821.5,2821.0,0.001]
[1763658737823,1.20636955,2821.1,2820.0,2.0]
[1763658738023,1.01637609,2821.0,2820.0,2.0]
[1763658738258,0.30749406,2820.9,2820.0,2.0]
[1763658738624,1.63199664,2821.6,2820.0,2.0]
[1763658738625,0.405504,2821.3,2820.0,2.0]
[1763658738823,1.31249664,2821.1,2820.0,2.0]
[1763658739024,1.57194043,2821.0,2820.0,2.0]
[1763658739260,0.30723688,2820.9,2820.0,2.0]
[1763658739444,0.34798831,2820.9,2820.0,2.0]
[1763658739757,0.34798831,2820.9,2820.7,0.001]
[1763658739959,0.30718831,2820.9,2820.7,0.001]
[1763658740262,0.3195,2820.8,2820.7,0.001]
[1763658740560,0.30718831,2820.8,2820.7,0.001]
[1763658740758,0.30718831,2821.4,2820.7,0.001]
[1763658740961,1.21418095,2821.6,2820.7,0.001]
[1763658741264,1.34426955,2822.2,2820.7,0.001]
[1763658741265,0.30718831,2821.5,2820.7,0.001]
[1763658741460,0.90699264,2821.6,2820.7,0.001]
[1763658741757,0.0408,2820.8,2820.7,0.001]
[1763658742129,0.30718831,2820.9,2820.7,0.001]
[1763658742387,0.0408,2820.9,2820.7,0.001]
[1763658742589,0.30746794,2821.4,2820.7,0.001]
[1763658742797,0.90699264,2821.7,2820.7,0.001]
[1763658742998,0.90699264,2821.5,2820.7,0.001]
[1763658743204,0.0408,2820.8,2820.7,0.001]
[1763658743405,0.446304,2820.8,2820.7,0.001]
[1763658743605,1.07327194,2820.8,2820.7,0.001]
[1763658743807,0.75377194,2820.8,2820.7,0.001]
[1763658744180,1.07327194,2820.8,2820.7,0.001]
[1763658744375,5.69326458,2820.8,2820.7,0.001]
[1763658744572,1.25526058,2820.8,2820.7,0.001]
[1763658744976,5.11985417,2820.8,2820.7,0.001]
[1763658745172,1.57476058,2820.8,2820.7,0.001]
[1763658745487,0.3195,2821.7,2820.7,0.001]
[1763658745685,1.53301973,2821.4,2820.7,0.001]
[1763658745885,0.0408,2820.8,2820.7,0.001]
[1763658746428,0.3603,2820.8,2820.7,0.001]
[1763658746592,0.765804,2820.8,2820.7,0.001]
[1763658746792,5.21789023,2820.8,2820.7,0.001]
[1763658747126,6.23122143,2820.8,2820.7,0.001]
[1763658747295,2.68389845,2820.8,2820.7,0.001]
[1763658747616,0.40652709,2820.8,2820.7,0.001]
[1763658747801,0.1,2820.8,2820.7,0.001]
[1763658748822,1.00699264,2820.8,2820.7,0.001]
[1763658749029,0.1,2820.8,2820.7,0.001]
[1763658749320,3.68126163,2822.2,2820.7,0.4895]
[1763658749519,0.1,2820.8,2820.7,0.4895]
[1763658749893,0.30582187,2822.1,2820.7,0.4895]
[1763658750216,0.1,2820.8,2820.7,0.4895]
[1763658750428,0.1379,2822.2,2820.7,0.4895]
[1763658750429,0.30582187,2822.3,2820.7,0.4895]
[1763658750584,0.30582187,2822.6,2820.7,0.4895]
[1763658751024,0.1,2821.7,2820.7,0.4895]
[1763658751220,0.1,2821.5,2820.7,0.4895]
[1763658751429,1.91832634,2822.4,2820.7,0.4895]
[1763658751613,1.44134788,2822.7,2820.7,0.4895]
[1763658751614,0.1,2821.6,2820.7,0.4895]
[1763658751925,7.08591674,2822.5,2820.7,0.4895]
[1763658752092,0.405504,2822.3,2820.7,0.4895]
[1763658752300,1.41647373,2822.3,2820.7,0.4895]
[1763658752623,0.1,2821.5,2820.7,0.4895]
[1763658752795,0.55645571,2822.7,2821.4,0.1886]
[1763658752995,0.55645571,2822.7,2821.8,6.24453189]
[1763658753197,0.55645571,2822.7,2821.5,6.73423189]
[1763658753417,0.1408,2823.5,2821.5,0.4897]
[1763658753621,3.713,2823.3,2821.4,0.1886]
[1763658753821,0.405504,2823.1,2821.5,0.4897]
[1763658754007,0.405504,2823.1,2821.0,0.1886]
[1763658754008,0.405504,2822.8,2821.0,0.1886]
[1763658754210,0.4195,2823.2,2821.0,0.1886]
[1763658754211,1.31249664,2822.5,2821.0,0.1886]
[1763658754421,1.0122759,2822.4,2821.0,0.1886]
[1763658754753,0.88489217,2823.5,2822.4,0.1886]
[1763658755042,2.92491968,2824.5,2822.4,0.1886]
[1763658755043,10.88489217,2824.6,2822.4,0.1886]
[1763658755361,2.42932508,2825.4,2822.5,0.4897]
[1763658755362,0.90899264,2824.2,2822.5,0.4897]
[1763658755503,0.65397403,2824.1,2822.5,0.4897]
[1763658755698,0.002,2824.2,2822.5,0.4897]
[1763658756319,0.002,2824.2,2822.6,0.135]
[1763658756523,0.002,2824.2,2822.5,0.6247]
[1763658756857,0.002,2824.2,2822.6,0.4897]
[1763658757147,0.8250788,2824.1,2822.6,0.4897]
[1763658757346,0.30617235,2824.0,2822.6,0.4897]
[1763658757509,0.86749547,2823.9,2822.5,0.4897]
[1763658757811,0.86749547,2823.9,2821.9,0.1886]
[1763658757812,1.31249664,2823.4,2821.9,0.1886]
[1763658758025,0.405504,2823.7,2821.9,0.1886]
[1763658758225,0.305568,2823.7,2822.0,0.4897]
[1763658758413,1.11816766,2823.6,2822.0,0.4897]
[1763658758724,0.305568,2823.5,2822.0,0.4897]
[1763658758931,0.90699264,2823.3,2822.0,0.4897]
[1763658759245,0.1408,2823.5,2822.0,0.4897]
[1763658759246,1.41336744,2823.5,2822.0,0.4897]
[1763658759406,0.30594314,2823.4,2822.0,0.4897]
[1763658759605,0.39369813,2823.3,2822.0,0.4897]
[1763658759806,0.31155337,2822.4,2822.0,0.4897]
[1763658761218,0.31155337,2822.4,2822.0,0.5119]
[1763658761928,0.31155337,2822.4,2822.0,0.0222]
[1763658762128,0.31155337,2822.4,2822.1,0.458]
[1763658762514,0.31155337,2822.4,2822.0,0.0222]
[1763658764156,0.31155337,2822.4,2822.0,0.4802]
[1763658764357,0.31155337,2822.4,2822.1,0.458]
[1763658765005,0.90699264,2824.0,2822.1,0.458]
[1763658765209,7.15152453,2824.0,2822.1,0.458]
[1763658765406,0.405504,2823.3,2822.0,0.0222]
[1763658765707,0.88489217,2824.0,2822.1,0.458]
[1763658765914,0.002,2824.2,2823.2,0.1993]
[1763658766555,0.002,2824.2,2822.9,0.458]
[1763658766736,0.002,2824.2,2823.0,0.458]
[1763658768208,0.002,2824.2,2822.3,0.0222]
[1763658768209,0.4537,2824.1,2822.5,0.6573]
[1763658768426,0.405504,2823.7,2822.3,0.0222]
[1763658768925,0.90699264,2823.3,2822.3,0.0222]
[1763658769110,0.4537,2824.1,2822.4,0.458]
[1763658769310,6.24453189,2823.5,2822.3,0.0222]
[1763658769504,5.02549664,2823.5,2822.3,0.0222]
[1763658769724,0.6513,2823.4,2822.3,0.0222]
[1763658769920,0.405504,2823.2,2822.3,0.0222]
[1763658770321,0.859204,2823.2,2822.3,0.0222]
[1763658770525,0.405504,2822.9,2822.3,0.0222]
[1763658770925,0.405504,2822.7,2822.3,0.0222]
[1763658771325,0.405504,2823.2,2822.3,0.0222]
[1763658771643,0.90699264,2823.0,2822.3,0.0222]
[1763658771842,0.4537,2822.7,2822.3,0.0222]
[1763658772641,0.90699264,2823.0,2822.3,0.0222]
[1763658772841,7.53795982,2823.2,2822.3,0.0222]
[1763658772842,0.4537,2823.2,2822.3,0.0222]
[1763658773148,0.4537,2823.1,2822.3,0.0222]
[1763658773715,0.75985244,2823.1,2822.3,0.0222]
[1763658773938,0.30628536,2823.0,2822.3,0.0222]
[1763658774263,0.4537,2823.0,2822.3,0.0222]
[1763658774843,0.30628536,2823.1,2822.3,0.0222]
[1763658775056,0.002,2824.2,2822.4,0.458]
[1763658775212,7.08386372,2824.2,2822.4,0.458]
[1763658775419,0.3068,2824.1,2822.5,0.1993]
[1763658775820,1.36069264,2824.1,2822.6,0.458]
[1763658776123,1.36069264,2824.1,2822.3,0.0222]
[1763658776124,0.3068,2824.0,2822.3,0.0222]
[1763658776323,0.4537,2824.0,2822.3,0.0222]
[1763658776525,0.4537,2824.0,2822.4,0.458]
[1763658776526,0.405504,2823.9,2822.4,0.458]
[1763658776729,0.3068,2823.9,2822.4,0.458]
[1763658776922,0.3068,2823.9,2822.5,0.1993]
[1763658777251,0.4537,2824.0,2822.6,0.458]
[1763658777449,0.002,2822.8,2822.6,0.458]
[1763658777665,0.2887,2824.3,2822.6,0.458]
[1763658778667,0.4537,2824.2,2822.6,0.458]
[1763658778955,0.90699264,2824.0,2822.6,0.458]
[1763658779151,1.1637601,2824.2,2822.6,0.458]
[1763658779152,0.4537,2824.2,2822.6,0.458]
[1763658779359,0.4537,2824.2,2821.7,0.90799264]
[1763658779360,240.7657,2822.0,2821.7,0.90799264]
[1763658779566,240.7657,2822.0,2821.8,0.71525245]
[1763658780163,240.7657,2822.0,2821.7,0.001]
[1763658780716,228.7657,2822.0,2821.7,0.001]
[1763658781363,0.4537,2821.9,2821.7,0.001]
[1763658781800,1.36069264,2821.9,2821.7,0.001]
[1763658781981,1.36069264,2821.9,2820.2,0.1886]
[1763658781982,1.11620407,2821.8,2820.2,0.1886]
[1763658782151,0.405504,2821.7,2819.8,0.1947]
[1763658782354,0.405504,2821.7,2819.4,0.458]
[1763658782355,0.405504,2821.2,2819.4,0.1947]
[1763658782600,0.1976,2820.1,2818.2,0.458]
[1763658782893,7.09245008,2819.9,2818.2,0.458]
[1763658783054,1.31249664,2819.8,2818.2,0.458]
[1763658783255,4.61999264,2820.3,2818.2,0.458]
[1763658783256,0.88489217,2820.4,2818.2,0.458]
[1763658783557,0.1976,2821.0,2818.2,0.458]
[1763658783558,0.4537,2820.9,2818.7,6.24453189]
[1763658783877,0.1,2820.2,2818.3,0.405504]
[1763658784195,0.5506,2820.9,2818.4,0.458]
[1763658784196,0.405504,2820.4,2818.4,0.458]
[1763658784686,0.405504,2820.4,2818.5,0.1993]
[1763658784687,0.1,2819.1,2818.5,0.1993]
[1763658784898,0.1,2819.3,2818.6,0.458]
[1763658785100,0.1,2819.2,2818.6,0.458]
[1763658785305,0.1,2818.9,2818.6,0.458]
[1763658785505,0.4537,2820.6,2818.6,0.458]
[1763658785719,0.405504,2820.5,2818.0,0.458]
[1763658786007,0.1,2818.6,2817.7,0.458]
[1763658786153,0.1,2818.2,2817.7,0.458]
[1763658786355,0.0988,2819.5,2817.7,0.458]
[1763658786572,0.1976,2820.2,2817.9,6.24453189]
[1763658786756,0.4537,2820.1,2818.0,0.458]
[1763658786991,0.1,2819.2,2818.0,0.458]
[1763658787291,0.1,2820.3,2818.0,0.458]
[1763658787513,0.4537,2820.3,2818.0,0.458]
[1763658787659,0.1,2818.9,2818.0,0.458]
[1763658787866,1.31249664,2819.8,2817.7,0.458]
[1763658788159,0.1,2817.6,2817.2,0.6573]
[1763658788363,0.1,2818.5,2817.2,0.6573]
[1763658788570,0.1976,2819.0,2817.2,0.6622]
[1763658788571,0.1,2817.4,2817.2,0.6622]
[1763658788772,0.405504,2818.7,2816.7,0.4629]
[1763658788973,0.1,2818.2,2816.7,0.4629]
[1763658789174,0.90699264,2818.5,2815.8,0.1947]
[1763658789175,0.1,2817.2,2815.8,0.1947]
[1763658789376,0.1,2817.0,2816.5,0.4629]
[1763658789587,0.1,2816.9,2816.5,0.4629]
[1763658789907,0.6709,2818.1,2816.6,0.4629]
[1763658789908,0.4733,2818.0,2816.6,0.4629]
[1763658790087,0.4733,2818.0,2816.2,0.4629]
[1763658790088,0.1,2816.7,2816.2,0.4629]
[1763658790287,0.4733,2818.0,2816.2,0.4629]
[1763658790497,0.1,2816.5,2816.2,0.4629]
[1763658790800,0.1,2816.5,2815.8,0.1947]
[1763658790991,0.1,2816.5,2815.4,0.1938]
[1763658791402,0.1,2816.5,2815.7,0.4629]
[1763658791564,0.4733,2817.4,2815.4,0.1938]
[1763658791565,0.4733,2816.8,2815.4,0.1938]
[1763658791766,0.1,2816.5,2815.4,0.1938]
[1763658791970,0.4733,2817.3,2816.0,0.4629]
[1763658792166,0.1,2816.6,2816.0,0.4629]
[1763658792413,0.1,2816.5,2815.7,0.4629]
[1763658792717,0.1,2816.5,2815.4,0.1938]
[1763658793207,0.1,2815.5,2814.0,1.37915885]
[1763658793364,1.31249664,2815.9,2814.0,1.37915885]
[1763658793570,1.31249664,2815.9,2814.0,0.91625885]
[1763658793571,0.1,2814.1,2814.0,0.91625885]
[1763658794073,0.1554,2815.4,2814.0,0.91625885]
[1763658794074,0.4733,2814.8,2814.0,0.91625885]
[1763658794289,0.1,2814.1,2814.0,0.91625885]
[1763658794901,0.4733,2814.4,2814.0,0.91625885]
[1763658795117,0.90699264,2815.2,2814.0,0.91625885]
[1763658795299,0.1,2814.1,2814.0,0.91625885]
[1763658795613,0.1554,2815.4,2814.0,0.91625885]
[1763658795799,0.1554,2815.4,2814.1,0.4629]
[1763658795973,0.1,2814.7,2814.1,0.4629]
[1763658796172,0.4733,2816.0,2814.2,0.4629]
[1763658796400,0.1,2814.7,2814.0,0.91625885]
[1763658796801,0.55755451,2816.5,2815.8,0.001]
[1763658796985,0.4733,2816.4,2815.8,0.001]
[1763658797199,0.1,2815.9,2815.8,0.001]
[1763658797578,0.4733,2816.4,2815.8,0.001]
[1763658797879,0.1,2815.9,2815.8,0.001]
[1763658798092,0.55755451,2816.5,2815.8,0.001]
[1763658798580,0.55755451,2816.5,2815.0,0.135]
[1763658798581,0.1,2815.6,2814.7,5.73962453]
[1763658798818,0.55755451,2816.5,2814.7,5.73962453]
[1763658799115,0.55755451,2816.5,2814.8,0.57396245]
[1763658799116,0.1,2815.7,2814.8,0.57396245]
[1763658799287,0.55755451,2816.5,2815.2,6.24453189]
[1763658799485,0.1,2816.0,2814.9,6.24453189]
[1763658799694,0.1,2815.6,2814.8,0.57396245]
[1763658799911,0.1,2815.4,2814.2,6.24453189]
[1763658800095,0.1,2815.3,2814.2,6.24453189]
[1763658800296,0.55755451,2816.5,2812.7,0.09999999]
[1763658800297,0.1,2815.0,2813.7,6.37953189]
[1763658800510,0.1,2815.0,2814.2,6.24453189]
[1763658800821,0.4733,2816.0,2814.1,0.3124]
[1763658800990,0.1,2814.6,2814.1,0.3124]
[1763658801196,0.4733,2816.0,2814.1,0.3124]
[1763658801399,4.02444668,2816.0,2814.1,0.3124]
[1763658801701,0.1,2815.0,2814.1,0.3124]
[1763658801904,0.1,2814.7,2814.1,0.3124]
[1763658802105,0.4733,2816.2,2814.1,0.3124]
[1763658802404,0.405504,2815.9,2813.1,0.3124]
[1763658802609,0.1,2814.1,2813.1,0.3124]
[1763658802818,0.1,2814.1,2812.5,0.135]
[1763658802819,0.1,2814.5,2813.0,0.3124]
[1763658803000,0.1,2814.1,2813.5,0.3124]
[1763658803324,0.1,2814.1,2813.1,0.3124]
[1763658803888,0.90699264,2815.2,2813.1,0.3124]
[1763658804084,0.2976,2814.1,2814.0,0.17179853]
[1763658804314,0.1976,2814.1,2814.0,0.17179853]
[1763658804520,0.7709,2814.1,2814.0,0.17179853]
[1763658805022,0.7709,2814.1,2810.7,0.71583712]
[1763658805023,0.405504,2814.0,2811.2,6.24453189]
[1763658805211,0.1976,2814.1,2812.0,0.4629]
[1763658805526,0.1,2813.4,2812.6,0.90699264]
[1763658805696,0.1,2813.4,2811.9,0.599304]
[1763658805697,0.36506506,2814.4,2812.3,0.4629]
[1763658805899,0.1,2813.1,2811.9,0.6567]
[1763658806112,0.1,2812.4,2811.9,0.6567]
[1763658806422,0.1,2812.1,2811.9,0.6567]
[1763658806719,0.1,2812.1,2811.9,0.1938]
[1763658807125,0.405504,2813.9,2812.0,0.4629]
[1763658807126,0.1976,2813.7,2812.0,0.4629]
[1763658807293,0.6709,2813.8,2811.9,0.1938]
[1763658807488,0.1,2812.7,2811.9,0.1938]
[1763658807712,0.1,2812.5,2810.9,0.4629]
[1763658807919,0.4733,2813.7,2810.6,0.1938]
[1763658807920,0.1,2811.8,2811.1,0.4629]
[1763658808122,0.1,2811.9,2811.2,9.74961426]
[1763658808323,0.4733,2813.6,2811.4,6.24453189]
[1763658808524,0.4733,2813.6,2811.3,1.36989264]
[1763658808525,0.1,2812.3,2811.6,0.90699264]
[1763658808688,0.1,2812.3,2811.2,3.50508237]
[1763658808689,0.1,2812.2,2811.4,0.4629]
[1763658808890,0.1,2812.1,2811.4,0.4629]
[1763658809201,0.1,2811.5,2811.4,0.4629]
[1763658809436,0.1,2811.5,2811.2,3.50508237]
[1763658809437,0.1,2811.7,2811.2,3.50508237]
[1763658809615,0.5733,2812.6,2811.0,35.47834293]
[1763658809814,0.1,2811.6,2811.1,3.97478237]
[1763658810016,0.1,2811.2,2811.1,0.4697]
[1763658810224,0.1,2811.3,2811.0,35.00864293]
[1763658810389,0.1,2811.1,2811.0,35.00864293]
[1763658810588,0.4821,2814.3,2811.0,41.85787482]
[1763658810792,0.4821,2814.3,2811.3,6.24453189]
[1763658810992,0.4821,2814.3,2811.1,0.4697]
[1763658810993,0.4821,2814.3,2812.1,0.90699264]
[1763658811196,0.1,2813.6,2812.5,6.24453189]
[1763658811430,0.1,2813.6,2812.2,0.6635]
[1763658811431,0.1,2813.9,2812.2,0.6635]
[1763658811603,0.1976,2814.6,2812.4,0.405504]
[1763658811803,0.1976,2814.6,2812.3,0.4697]
[1763658811804,0.1,2813.6,2812.8,0.405504]
[1763658812008,0.4821,2815.7,2813.6,0.405504]
[1763658812335,0.1976,2815.9,2813.5,0.0966]
[1763658812336,0.4821,2815.6,2813.5,0.0966]
[1763658812494,0.4821,2815.6,2813.7,0.405504]
[1763658812690,0.4821,2815.6,2813.8,0.4697]
[1763658813742,0.1976,2815.9,2813.8,0.4697]
[1763658813929,0.4821,2815.5,2813.8,0.4697]
[1763658814503,0.1801,2813.9,2811.4,0.62445319]
[1763658814834,0.4821,2813.8,2811.8,0.4697]
[1763658815130,0.4821,2813.8,2812.1,0.4697]
[1763658815439,0.55788488,2813.5,2811.6,0.4697]
[1763658815595,0.55788488,2813.5,2812.2,0.6635]
[1763658816128,0.55788488,2813.5,2812.3,0.4697]
[1763658817110,0.55788488,2813.5,2811.8,0.1938]
[1763658817111,0.4821,2813.4,2811.8,0.1938]
[1763658817310,0.70379441,2814.3,2813.3,0.1412]
[1763658817560,0.002,2814.7,2813.3,0.1412]
[1763658817759,0.002,2814.7,2813.4,0.4697]
[1763658817978,0.002,2814.7,2813.5,0.82181807]
[1763658818157,0.002,2814.7,2813.6,0.4697]
[1763658820491,0.002,2814.7,2813.3,0.1412]
[1763658820785,0.4523,2814.7,2813.3,0.6412]
[1763658821364,0.4523,2814.7,2813.4,0.5]
[1763658821563,0.002,2814.7,2813.6,7.60728073]
[1763658821883,1.34841165,2814.6,2812.7,0.5]
[1763658822080,1.0129407,2814.5,2812.7,0.5]
[1763658822282,0.30624697,2814.4,2812.7,0.5]
[1763658822468,1.0129407,2814.5,2813.5,7.60728073]
[1763658822659,0.002,2814.7,2813.5,7.60728073]
[1763658822854,0.002,2814.7,2813.6,0.6878]
[1763658823244,0.002,2814.7,2814.0,7.60728073]
[1763658823849,0.002,2814.7,2814.0,8.10728073]
[1763658824053,0.002,2814.7,2814.1,1.31072807]
[1763658824276,0.002,2814.7,2814.2,0.5]
[1763658824657,0.002,2814.7,2814.5,7.60728073]
[1763658825040,0.002,2814.7,2814.6,0.5]
[1763658826194,0.55743288,2815.8,2814.7,0.405504]
[1763658826399,0.1801,2817.1,2815.7,7.60728073]
[1763658826400,0.6304,2817.1,2815.7,7.60728073]
[1763658826691,0.6304,2817.1,2814.5,0.90699264]
[1763658826692,0.55725032,2816.3,2816.2,7.60728073]
[1763658826850,0.4503,2817.5,2815.8,0.5]
[1763658827052,0.55710288,2816.7,2815.9,1.31072807]
[1763658827496,0.88489217,2818.0,2816.6,0.1823]
[1763658827653,0.55710408,2817.3,2816.6,0.6823]
[1763658827987,0.88489217,2818.3,2816.6,0.6823]
[1763658827988,0.70831116,2818.0,2816.6,0.1823]
[1763658828152,0.88489217,2818.2,2816.6,0.1823]
[1763658828153,0.55707421,2817.2,2816.6,0.1823]
[1763658828584,0.1951,2817.5,2816.2,0.5]
[1763658828817,0.1951,2817.5,2815.6,0.1878]
[1763658828818,0.55710118,2817.1,2815.7,1.40699264]
[1763658829155,0.55710118,2817.1,2815.6,0.1878]
[1763658829354,0.55710118,2817.1,2815.9,7.60728073]
[1763658829655,0.55710118,2817.1,2816.0,0.5]
[1763658830075,0.55710118,2817.1,2815.9,7.60728073]
[1763658830498,4.43377347,2817.8,2815.9,7.60728073]
[1763658830499,1.81290405,2818.0,2817.0,0.1878]
[1763658830665,0.1951,2818.6,2817.4,7.60728073]
[1763658831009,0.1951,2818.6,2817.5,0.76072807]
[1763658831375,0.1444,2818.8,2817.5,1.26072807]
[1763658831575,0.18266953,2819.6,2818.7,0.1648]
[1763658831790,0.002,2820.0,2818.7,0.1648]
[1763658831791,0.002,2820.0,2819.2,7.60728073]
[1763658832307,0.002,2820.0,2819.3,0.5]
[1763658832913,0.002,2820.0,2818.7,0.1648]
[1763658833131,0.4523,2820.0,2818.0,0.5]
[1763658833415,0.4523,2820.0,2817.5,0.136]
[1763658833416,0.90699264,2819.9,2817.5,0.5]
[1763658833618,0.90699264,2819.9,2815.6,0.96730807]
[1763658833619,0.405504,2819.5,2815.6,0.96730807]
[1763658833777,0.71074637,2819.5,2817.0,0.6878]
[1763658833980,0.405504,2819.3,2817.0,0.6878]
[1763658834178,0.71074637,2819.3,2817.0,0.6878]
[1763658834418,0.4503,2819.2,2816.7,0.6878]
[1763658834713,8.96977737,2819.1,2816.2,0.1878]
[1763658834916,0.405504,2818.7,2816.1,0.5]
[1763658835225,0.30524237,2818.7,2816.4,7.60728073]
[1763658835382,1.76279664,2818.6,2816.1,0.5]
[1763658835714,0.4503,2818.6,2816.3,7.60728073]
[1763658836016,0.4503,2818.5,2816.8,7.60728073]
[1763658836190,0.4503,2818.5,2816.9,1.26072807]
[1763658836809,0.4503,2818.5,2817.0,0.5]
[1763658836985,3.95227261,2819.5,2817.0,0.5]
[1763658836986,0.55673032,2819.6,2818.4,0.1878]
[1763658837181,0.55673032,2819.6,2818.4,1.59479264]
[1763658837391,0.55673032,2819.6,2818.5,0.92020734]
[1763658837627,0.002,2820.0,2818.5,1.42020734]
[1763658837918,0.4503,2819.9,2818.5,0.92020734]